[Event "*** Titled Tuesday Blitz"]
[Site "Chess.com"]
[Date "2019.12.03"]
[Round "1"]
[White "vlad10898"]
[Black "2165149677570"]
[Result "1-0"]
[WhiteElo "2690"]
[BlackElo "2330"]
[TimeControl "180+2"]
[EndTime "13:08:02 PST"]
[Termination "vlad10898 won by resignation"]

1. e4 {[%clk 0:03:01.8]} 1... c5 {[%clk 0:03:00.9]} 2. Nf3 {[%clk 0:03:02.6]}
2... d6 {[%clk 0:03:02.2]} 3. d4 {[%clk 0:03:04.2]} 3... cxd4 {[%clk 0:03:04.1]}
4. Nxd4 {[%clk 0:03:05.9]} 4... Nf6 {[%clk 0:03:05.7]} 5. Nc3 {[%clk 0:03:07.6]}
5... a6 {[%clk 0:03:07.4]} 6. Bg5 {[%clk 0:03:09.2]} 6... e6 {[%clk 0:03:08.6]}
7. f4 {[%clk 0:03:10.1]} 7... b5 {[%clk 0:03:10.2]} 8. e5 {[%clk 0:03:07.3]}
8... dxe5 {[%clk 0:03:12.1]} 9. fxe5 {[%clk 0:03:09.1]} 9... Qc7 {[%clk
0:03:13]} 10. exf6 {[%clk 0:03:09.9]} 10... Qe5+ {[%clk 0:03:14.2]} 11. Be2
{[%clk 0:03:08.3]} 11... Qxg5 {[%clk 0:03:15.3]} 12. O-O {[%clk 0:03:08.9]}
12... Ra7 {[%clk 0:03:16.9]} 13. Qd3 {[%clk 0:02:16.5]} 13... Rd7 {[%clk
0:03:11.7]} 14. Ne4 {[%clk 0:02:17.7]} 14... Qg6 {[%clk 0:03:11.8]} 15. Qe3
{[%clk 0:02:16.1]} 15... Bb7 {[%clk 0:03:10.4]} 16. Bd3 {[%clk 0:02:16.9]} 16...
Bxe4 {[%clk 0:03:06.4]} 17. Bxe4 {[%clk 0:02:13.1]} 17... Qh6 {[%clk 0:02:54.1]}
18. Qf2 {[%clk 0:01:35.7]} 18... Bc5 {[%clk 0:02:08.1]} 19. c3 {[%clk
0:01:27.8]} 19... Qxf6 {[%clk 0:02:00.5]} 20. Qg3 {[%clk 0:00:48.7]} 20... Bxd4+
{[%clk 0:01:52.1]} 21. cxd4 {[%clk 0:00:50.3]} 21... Qxd4+ {[%clk 0:01:51.7]}
22. Rf2 {[%clk 0:00:51.9]} 22... O-O {[%clk 0:01:24.9]} 23. Bf3 {[%clk
0:00:51.9]} 23... Rd6 {[%clk 0:01:10.7]} 24. Rd1 {[%clk 0:00:49.5]} 24... Qxd1+
{[%clk 0:01:11.6]} 25. Bxd1 {[%clk 0:00:50.7]} 25... Rxd1+ {[%clk 0:01:13.5]}
26. Rf1 {[%clk 0:00:52.5]} 26... Rxf1+ {[%clk 0:01:12.2]} 27. Kxf1 {[%clk
0:00:54.4]} 27... Rc8 {[%clk 0:01:11.5]} 28. Qa3 {[%clk 0:00:50.3]} 28... Nd7
{[%clk 0:00:58.9]} 29. Qd6 {[%clk 0:00:47.7]} 29... Nc5 {[%clk 0:00:59.2]} 30.
b4 {[%clk 0:00:47.3]} 30... Na4 {[%clk 0:00:23.2]} 31. Qxa6 {[%clk 0:00:46]}
31... Rc1+ {[%clk 0:00:25]} 32. Kf2 {[%clk 0:00:43.3]} 32... Rc2+ {[%clk
0:00:26.3]} 33. Kf3 {[%clk 0:00:44.6]} 33... Rc3+ {[%clk 0:00:27.6]} 34. Ke4
{[%clk 0:00:43.4]} 34... Rc4+ {[%clk 0:00:28.9]} 35. Ke3 {[%clk 0:00:40.1]}
35... Rc3+ {[%clk 0:00:29.2]} 36. Kd2 {[%clk 0:00:39.8]} 36... h6 {[%clk
0:00:23.8]} 37. Qxb5 {[%clk 0:00:39]} 37... Ra3 {[%clk 0:00:25.1]} 38. Qc4
{[%clk 0:00:35.6]} 38... Nb2 {[%clk 0:00:26]} 39. Qc8+ {[%clk 0:00:35.3]} 39...
Kh7 {[%clk 0:00:26.4]} 40. Qc2+ {[%clk 0:00:37]} 40... Nd3 {[%clk 0:00:21.8]}
41. Qxd3+ {[%clk 0:00:38.4]} 1-0

[Event "*** Titled Tuesday Blitz"]
[Site "Chess.com"]
[Date "2019.12.03"]
[Round "1"]
[White "davigator"]
[Black "biostatistician"]
[Result "0-1"]
[WhiteElo "2304"]
[BlackElo "2636"]
[TimeControl "180+2"]
[EndTime "13:08:06 PST"]
[Termination "biostatistician won by resignation"]

1. e4 {[%clk 0:03:01.9]} 1... e6 {[%clk 0:03:00.6]} 2. d4 {[%clk 0:03:02.1]}
2... d5 {[%clk 0:03:02.5]} 3. Nc3 {[%clk 0:03:02.6]} 3... Nc6 {[%clk 0:03:03.8]}
4. Nf3 {[%clk 0:03:00.2]} 4... Nf6 {[%clk 0:03:05.1]} 5. Bd3 {[%clk 0:02:58.3]}
5... Nb4 {[%clk 0:03:05.4]} 6. O-O {[%clk 0:02:57.6]} 6... Be7 {[%clk
0:03:02.7]} 7. Re1 {[%clk 0:02:56.8]} 7... Nxd3 {[%clk 0:03:00.6]} 8. cxd3
{[%clk 0:02:57.2]} 8... O-O {[%clk 0:02:59.5]} 9. h3 {[%clk 0:02:56.8]} 9... c5
{[%clk 0:02:58.6]} 10. dxc5 {[%clk 0:02:57.5]} 10... dxe4 {[%clk 0:02:55.5]} 11.
Nxe4 {[%clk 0:02:51.8]} 11... Nxe4 {[%clk 0:02:55.2]} 12. dxe4 {[%clk
0:02:52.6]} 12... Bxc5 {[%clk 0:02:56.8]} 13. Qc2 {[%clk 0:02:51]} 13... b6
{[%clk 0:02:55.3]} 14. Bf4 {[%clk 0:02:50.7]} 14... Bb7 {[%clk 0:02:53.5]} 15.
a3 {[%clk 0:02:51.4]} 15... Rc8 {[%clk 0:02:53.9]} 16. Qe2 {[%clk 0:02:46.1]}
16... Qf6 {[%clk 0:02:47.3]} 17. Bg5 {[%clk 0:02:45.5]} 17... Qg6 {[%clk
0:02:47.5]} 18. Rad1 {[%clk 0:02:41.5]} 18... h6 {[%clk 0:02:47]} 19. Bf4 {[%clk
0:02:41.3]} 19... Rfd8 {[%clk 0:02:43.5]} 20. Ne5 {[%clk 0:02:41.3]} 20... Qf6
{[%clk 0:02:40.3]} 21. Bg3 {[%clk 0:02:41.8]} 21... Qe7 {[%clk 0:02:24.7]} 22.
Kh2 {[%clk 0:02:38.7]} 22... Rxd1 {[%clk 0:02:23.9]} 23. Rxd1 {[%clk 0:02:38.7]}
23... Rd8 {[%clk 0:02:25.5]} 24. Rxd8+ {[%clk 0:02:39.2]} 24... Qxd8 {[%clk
0:02:27.4]} 25. Qf3 {[%clk 0:02:39.8]} 25... Qf6 {[%clk 0:02:22.5]} 26. Qe2
{[%clk 0:02:30.2]} 26... Bd4 {[%clk 0:02:18.6]} 27. Nd3 {[%clk 0:02:25.5]} 27...
Qd8 {[%clk 0:02:13.6]} 28. Ne1 {[%clk 0:02:19.6]} 28... Bf6 {[%clk 0:02:11.7]}
29. e5 {[%clk 0:02:19.5]} 29... Be7 {[%clk 0:02:11.8]} 30. f3 {[%clk 0:02:16.3]}
30... a5 {[%clk 0:02:04.3]} 31. Bf2 {[%clk 0:02:12.8]} 31... Qc7 {[%clk
0:01:59.9]} 32. Nc2 {[%clk 0:02:10.5]} 32... Bc5 {[%clk 0:01:50.5]} 33. Bg3
{[%clk 0:02:10.4]} 33... Qc6 {[%clk 0:01:48.5]} 34. b4 {[%clk 0:02:08.5]} 34...
axb4 {[%clk 0:01:49.4]} 35. axb4 {[%clk 0:02:10.4]} 35... Be7 {[%clk 0:01:50.5]}
36. b5 {[%clk 0:02:09.6]} 36... Qc3 {[%clk 0:01:46.8]} 37. Bf2 {[%clk
0:02:08.9]} 37... Bc5 {[%clk 0:01:47.1]} 38. Bxc5 {[%clk 0:02:08.9]} 38... Qxc5
{[%clk 0:01:49]} 39. Ne1 {[%clk 0:02:04.9]} 39... Bd5 {[%clk 0:01:49]} 40. Qc2
{[%clk 0:02:03.3]} 40... Qxb5 {[%clk 0:01:43.6]} 41. Nd3 {[%clk 0:02:02.5]}
41... Bc4 {[%clk 0:01:36.8]} 42. Nb2 {[%clk 0:02:02.9]} 42... Qxe5+ {[%clk
0:01:37.7]} 43. Kg1 {[%clk 0:02:00.5]} 43... Qe3+ {[%clk 0:01:34.8]} 44. Kh2
{[%clk 0:02:01.4]} 44... Bd5 {[%clk 0:01:33.7]} 45. Qc8+ {[%clk 0:01:59.9]}
45... Kh7 {[%clk 0:01:35.3]} 46. Qc2+ {[%clk 0:02:01.4]} 46... g6 {[%clk
0:01:35.3]} 47. Nd1 {[%clk 0:02:02.7]} 47... Qf4+ {[%clk 0:01:35.3]} 48. Kg1
{[%clk 0:02:04.1]} 48... b5 {[%clk 0:01:35]} 49. Nf2 {[%clk 0:02:04.7]} 49... b4
{[%clk 0:01:33.9]} 50. Qb2 {[%clk 0:02:03.9]} 50... h5 {[%clk 0:01:29.6]} 51.
Kh1 {[%clk 0:02:01.6]} 51... Qe3 {[%clk 0:01:27.1]} 52. Qf6 {[%clk 0:02:00.4]}
52... Kg8 {[%clk 0:01:16.3]} 53. Qb2 {[%clk 0:01:56.8]} 53... b3 {[%clk
0:01:13]} 54. Kh2 {[%clk 0:01:57.2]} 54... Qc5 {[%clk 0:01:05.1]} 55. Ne4 {[%clk
0:01:52.5]} 55... Bxe4 {[%clk 0:01:00.2]} 56. fxe4 {[%clk 0:01:53.3]} 56... Qc2
{[%clk 0:01:01.3]} 57. Qd4 {[%clk 0:01:52.6]} 57... b2 {[%clk 0:00:59.1]} 58.
Qd8+ {[%clk 0:01:52.8]} 58... Kh7 {[%clk 0:00:59.5]} 59. Qf6 {[%clk 0:01:53.2]}
59... Qc7+ {[%clk 0:01:00.1]} 60. e5 {[%clk 0:01:53.1]} 60... b1=Q {[%clk
0:01:01.3]} 61. Qf3 {[%clk 0:01:51.8]} 61... Qxe5+ {[%clk 0:01:01.3]} 0-1

[Event "*** Titled Tuesday Blitz"]
[Site "Chess.com"]
[Date "2019.12.03"]
[Round "1"]
[White "DonBroca"]
[Black "chessdude"]
[Result "0-1"]
[WhiteElo "2109"]
[BlackElo "2549"]
[TimeControl "180+2"]
[EndTime "13:08:10 PST"]
[Termination "chessdude won by checkmate"]

1. e4 {[%clk 0:02:55]} 1... c6 {[%clk 0:03:00.3]} 2. Nf3 {[%clk 0:02:54.6]} 2...
d5 {[%clk 0:03:01.5]} 3. exd5 {[%clk 0:02:55.7]} 3... cxd5 {[%clk 0:03:02.4]} 4.
d4 {[%clk 0:02:56.6]} 4... Nf6 {[%clk 0:03:03.2]} 5. Nc3 {[%clk 0:02:57.2]} 5...
Nc6 {[%clk 0:03:00.5]} 6. Be2 {[%clk 0:02:56.7]} 6... Bf5 {[%clk 0:03:00.5]} 7.
O-O {[%clk 0:02:56.8]} 7... h6 {[%clk 0:03:01.1]} 8. Bf4 {[%clk 0:02:54.2]} 8...
e6 {[%clk 0:02:56.7]} 9. Ne5 {[%clk 0:02:52.6]} 9... Be7 {[%clk 0:02:52.6]} 10.
Rc1 {[%clk 0:02:48.7]} 10... O-O {[%clk 0:02:52.9]} 11. Qd2 {[%clk 0:02:43.3]}
11... Bh7 {[%clk 0:02:42.9]} 12. Rfd1 {[%clk 0:02:30.5]} 12... a6 {[%clk
0:02:42.6]} 13. a3 {[%clk 0:02:22.2]} 13... Nxe5 {[%clk 0:02:40.1]} 14. dxe5
{[%clk 0:02:19.1]} 14... Nd7 {[%clk 0:02:39.8]} 15. Bd3 {[%clk 0:01:51.4]} 15...
Bxd3 {[%clk 0:02:35]} 16. Qxd3 {[%clk 0:01:51.4]} 16... Rc8 {[%clk 0:02:25.7]}
17. Qg3 {[%clk 0:01:46.7]} 17... Bg5 {[%clk 0:02:23.6]} 18. Ne2 {[%clk
0:01:28.9]} 18... Bxf4 {[%clk 0:02:15.3]} 19. Qxf4 {[%clk 0:01:28.9]} 19... Qg5
{[%clk 0:02:14.1]} 20. g3 {[%clk 0:01:15.6]} 20... Qxe5 {[%clk 0:02:11.1]} 21.
Qxe5 {[%clk 0:01:13]} 21... Nxe5 {[%clk 0:02:13]} 22. Nd4 {[%clk 0:01:14.2]}
22... Nc4 {[%clk 0:02:12]} 23. Rb1 {[%clk 0:01:00.6]} 23... Rc7 {[%clk
0:02:13.2]} 24. c3 {[%clk 0:00:59.7]} 24... Rfc8 {[%clk 0:02:13.8]} 25. Nb3
{[%clk 0:00:59.4]} 25... b5 {[%clk 0:02:10.6]} 26. Nd4 {[%clk 0:00:58.1]} 26...
Rb7 {[%clk 0:02:10.1]} 27. Nc2 {[%clk 0:00:57.3]} 27... a5 {[%clk 0:02:08.6]}
28. f4 {[%clk 0:00:56.1]} 28... Nd6 {[%clk 0:02:07.9]} 29. Kf2 {[%clk
0:00:56.2]} 29... g5 {[%clk 0:02:07.1]} 30. Ke3 {[%clk 0:00:56]} 30... Nf5+
{[%clk 0:02:04.4]} 31. Kf3 {[%clk 0:00:56.4]} 31... Rc4 {[%clk 0:02:02.4]} 32.
fxg5 {[%clk 0:00:56.5]} 32... hxg5 {[%clk 0:02:02.7]} 33. Ne3 {[%clk 0:00:55.6]}
33... Nxe3 {[%clk 0:01:53.4]} 34. Kxe3 {[%clk 0:00:56.7]} 34... f5 {[%clk
0:01:49.7]} 35. Rd4 {[%clk 0:00:56.3]} 35... Rh7 {[%clk 0:01:43.6]} 36. Rxc4
{[%clk 0:00:36.3]} 36... bxc4 {[%clk 0:01:44.1]} 37. Kd4 {[%clk 0:00:35.4]}
37... Rxh2 {[%clk 0:01:42.2]} 38. Kc5 {[%clk 0:00:35.7]} 38... Kf7 {[%clk
0:01:38.8]} 39. Kb5 {[%clk 0:00:36.5]} 39... f4 {[%clk 0:01:38.5]} 40. gxf4
{[%clk 0:00:37]} 40... gxf4 {[%clk 0:01:40.4]} 41. Kxa5 {[%clk 0:00:38.1]} 41...
e5 {[%clk 0:01:40.2]} 42. Kb6 {[%clk 0:00:39]} 42... f3 {[%clk 0:01:40]} 43. a4
{[%clk 0:00:39.4]} 43... e4 {[%clk 0:01:40.6]} 44. Kc5 {[%clk 0:00:39.5]} 44...
e3 {[%clk 0:01:40.2]} 45. a5 {[%clk 0:00:38.7]} 45... e2 {[%clk 0:01:37.9]} 46.
a6 {[%clk 0:00:38.6]} 46... Rh8 {[%clk 0:01:34.8]} 47. Kxd5 {[%clk 0:00:32.4]}
47... f2 {[%clk 0:01:35.4]} 48. Kxc4 {[%clk 0:00:25.7]} 48... f1=Q {[%clk
0:01:35.8]} 49. Kb5 {[%clk 0:00:26.3]} 49... e1=Q+ {[%clk 0:01:35.2]} 50. c4
{[%clk 0:00:25.3]} 50... Qxb1 {[%clk 0:01:35.2]} 51. a7 {[%clk 0:00:24.5]} 51...
Qxb2+ {[%clk 0:01:36.5]} 52. Kc6 {[%clk 0:00:25]} 52... Qxc4+ {[%clk 0:01:36.8]}
53. Kd7 {[%clk 0:00:26.3]} 53... Qbd4# {[%clk 0:01:36.4]} 0-1

[Event "*** Titled Tuesday Blitz"]
[Site "Chess.com"]
[Date "2019.12.03"]
[Round "1"]
[White "MasterKroket"]
[Black "artooon"]
[Result "0-1"]
[WhiteElo "2443"]
[BlackElo "2807"]
[TimeControl "180+2"]
[EndTime "13:08:11 PST"]
[Termination "artooon won by resignation"]

1. d4 {[%clk 0:03:01.7]} 1... Nf6 {[%clk 0:03:00.5]} 2. c4 {[%clk 0:03:01.7]}
2... e6 {[%clk 0:03:01.6]} 3. Nf3 {[%clk 0:03:01.9]} 3... d5 {[%clk 0:03:02.8]}
4. Nc3 {[%clk 0:03:02.7]} 4... c6 {[%clk 0:03:04.3]} 5. Bg5 {[%clk 0:03:03.4]}
5... dxc4 {[%clk 0:03:05.4]} 6. e4 {[%clk 0:03:04.6]} 6... b5 {[%clk 0:03:06.7]}
7. e5 {[%clk 0:03:05.7]} 7... h6 {[%clk 0:03:08.3]} 8. Bh4 {[%clk 0:03:06.9]}
8... g5 {[%clk 0:03:09.8]} 9. Nxg5 {[%clk 0:03:08]} 9... hxg5 {[%clk 0:03:11.7]}
10. Bxg5 {[%clk 0:03:09.6]} 10... Be7 {[%clk 0:03:13.2]} 11. exf6 {[%clk
0:03:07.7]} 11... Bxf6 {[%clk 0:03:15.1]} 12. Bxf6 {[%clk 0:03:06.4]} 12... Qxf6
{[%clk 0:03:17]} 13. Ne4 {[%clk 0:03:07.7]} 13... Qe7 {[%clk 0:03:17.4]} 14. Qd2
{[%clk 0:03:01.7]} 14... Na6 {[%clk 0:03:16.5]} 15. g3 {[%clk 0:02:58.6]} 15...
Bb7 {[%clk 0:03:16.6]} 16. Bg2 {[%clk 0:02:59.6]} 16... O-O-O {[%clk 0:03:14.2]}
17. O-O {[%clk 0:02:48.8]} 17... c5 {[%clk 0:03:10.2]} 18. Qa5 {[%clk
0:02:44.9]} 18... f5 {[%clk 0:02:20.4]} 19. Nxc5 {[%clk 0:02:27.3]} 19... Nxc5
{[%clk 0:02:21.8]} 20. dxc5 {[%clk 0:02:25.4]} 20... Bxg2 {[%clk 0:02:23.1]} 21.
Kxg2 {[%clk 0:02:26.4]} 21... Qb7+ {[%clk 0:02:24.4]} 22. f3 {[%clk 0:02:25]}
22... f4 {[%clk 0:02:01.5]} 23. Rf2 {[%clk 0:02:14.3]} 23... fxg3 {[%clk
0:02:00.5]} 24. hxg3 {[%clk 0:02:14.1]} 24... Rd5 {[%clk 0:01:50.8]} 25. Rh1
{[%clk 0:02:00.1]} 25... Rxh1 {[%clk 0:01:51.4]} 26. Kxh1 {[%clk 0:02:00.9]}
26... Rxc5 {[%clk 0:01:52.5]} 27. Kg2 {[%clk 0:01:54.3]} 27... Rd5 {[%clk
0:01:48.7]} 28. Qb4 {[%clk 0:01:51.7]} 28... Qc6 {[%clk 0:01:48.5]} 29. Re2
{[%clk 0:01:36.9]} 29... e5 {[%clk 0:01:34.4]} 30. Qf8+ {[%clk 0:01:23.8]} 30...
Kb7 {[%clk 0:01:35.2]} 31. Qe7+ {[%clk 0:01:24]} 31... Qc7 {[%clk 0:01:35.4]}
32. Qe6 {[%clk 0:01:15.6]} 32... Qc6 {[%clk 0:01:30]} 33. Qe7+ {[%clk
0:01:03.8]} 33... Qc7 {[%clk 0:01:03.3]} 34. Qxc7+ {[%clk 0:00:53.6]} 34... Kxc7
{[%clk 0:01:05.2]} 35. g4 {[%clk 0:00:55.2]} 35... Kd6 {[%clk 0:01:05.4]} 36.
Kg3 {[%clk 0:00:56.3]} 36... Ke6 {[%clk 0:01:05.8]} 37. f4 {[%clk 0:00:53.9]}
37... b4 {[%clk 0:01:03.7]} 38. f5+ {[%clk 0:00:48]} 38... Kf6 {[%clk
0:01:04.6]} 39. Re4 {[%clk 0:00:43.6]} 39... Rd4 {[%clk 0:00:57.9]} 40. Rxd4
{[%clk 0:00:31.1]} 40... exd4 {[%clk 0:00:59.8]} 41. Kf4 {[%clk 0:00:29.5]}
41... c3 {[%clk 0:01:00.8]} 42. bxc3 {[%clk 0:00:28.3]} 42... bxc3 {[%clk
0:01:00.2]} 43. g5+ {[%clk 0:00:25.3]} 43... Kf7 {[%clk 0:01:00.9]} 0-1

[Event "*** Titled Tuesday Blitz"]
[Site "Chess.com"]
[Date "2019.12.03"]
[Round "1"]
[White "shnitez"]
[Black "gemarin"]
[Result "0-1"]
[WhiteElo "2521"]
[BlackElo "2122"]
[TimeControl "180+2"]
[EndTime "13:08:15 PST"]
[Termination "gemarin won on time"]

1. Nf3 {[%clk 0:02:59.8]} 1... d5 {[%clk 0:02:57.8]} 2. c4 {[%clk 0:03:00.5]}
2... c6 {[%clk 0:02:57]} 3. e3 {[%clk 0:03:01.3]} 3... Nf6 {[%clk 0:02:57.1]} 4.
Nc3 {[%clk 0:03:01.9]} 4... e6 {[%clk 0:02:55.7]} 5. b3 {[%clk 0:03:02.3]} 5...
Be7 {[%clk 0:02:55.3]} 6. Bb2 {[%clk 0:03:02.7]} 6... O-O {[%clk 0:02:56.5]} 7.
Qc2 {[%clk 0:03:03.6]} 7... b6 {[%clk 0:02:57.1]} 8. Be2 {[%clk 0:03:04.2]} 8...
Ba6 {[%clk 0:02:53.5]} 9. Rg1 {[%clk 0:03:04]} 9... dxc4 {[%clk 0:02:52.9]} 10.
bxc4 {[%clk 0:03:04]} 10... c5 {[%clk 0:02:53.7]} 11. g4 {[%clk 0:03:03.8]}
11... Nc6 {[%clk 0:02:51.6]} 12. g5 {[%clk 0:03:04.2]} 12... Nb4 {[%clk
0:02:44.4]} 13. Qb1 {[%clk 0:03:03.9]} 13... Nd7 {[%clk 0:02:43.9]} 14. a3
{[%clk 0:02:56.1]} 14... Nc6 {[%clk 0:02:43.3]} 15. Bd3 {[%clk 0:02:56.4]} 15...
f5 {[%clk 0:02:28.1]} 16. gxf6 {[%clk 0:02:52.8]} 16... Nxf6 {[%clk 0:02:28.3]}
17. Ng5 {[%clk 0:02:51.7]} 17... Ne5 {[%clk 0:02:21.1]} 18. Bxh7+ {[%clk
0:01:52.7]} 18... Kh8 {[%clk 0:02:18.4]} 19. Nce4 {[%clk 0:01:26.2]} 19... Nd3+
{[%clk 0:02:11.1]} 20. Kd1 {[%clk 0:01:17.7]} 20... Bxc4 {[%clk 0:02:07.4]} 21.
Nxf6 {[%clk 0:00:58.7]} 21... Bxf6 {[%clk 0:02:06.4]} 22. Bxf6 {[%clk
0:00:54.2]} 22... Rxf6 {[%clk 0:02:06.3]} 23. Bxd3 {[%clk 0:00:52.8]} 23... Bxd3
{[%clk 0:02:05.9]} 24. Qb2 {[%clk 0:00:49.3]} 24... Qd7 {[%clk 0:01:58.2]} 25.
f4 {[%clk 0:00:45.4]} 25... c4 {[%clk 0:01:56.2]} 26. Rc1 {[%clk 0:00:37.8]}
26... Rd8 {[%clk 0:01:53]} 27. Ke1 {[%clk 0:00:21.2]} 27... Re8 {[%clk
0:01:36.5]} 28. Qe5 {[%clk 0:00:20.3]} 28... Qd5 {[%clk 0:01:31.9]} 29. Qxd5
{[%clk 0:00:19.7]} 29... exd5 {[%clk 0:01:32.7]} 30. Kf2 {[%clk 0:00:21.6]}
30... b5 {[%clk 0:01:29.7]} 31. Nf3 {[%clk 0:00:22.6]} 31... a5 {[%clk
0:01:28.9]} 32. Rg5 {[%clk 0:00:22.7]} 32... Be4 {[%clk 0:01:27.9]} 33. Nd4
{[%clk 0:00:18.5]} 33... Rb8 {[%clk 0:01:27.3]} 34. Rcg1 {[%clk 0:00:14.6]}
34... Rb7 {[%clk 0:01:26.2]} 35. Ra1 {[%clk 0:00:11.7]} 35... b4 {[%clk
0:01:24.7]} 36. axb4 {[%clk 0:00:13.6]} 36... axb4 {[%clk 0:01:25.6]} 37. Ra8+
{[%clk 0:00:13.4]} 37... Kh7 {[%clk 0:01:26.7]} 38. Rg1 {[%clk 0:00:09.9]} 38...
b3 {[%clk 0:01:26.9]} 39. Nf3 {[%clk 0:00:10.8]} 39... Rg6 {[%clk 0:01:25.6]}
40. Ng5+ {[%clk 0:00:10.5]} 40... Rxg5 {[%clk 0:01:26.8]} 41. fxg5 {[%clk
0:00:08.6]} 41... b2 {[%clk 0:01:25.9]} 42. g6+ {[%clk 0:00:04.9]} 42... Bxg6
{[%clk 0:01:26.3]} 43. Rg3 {[%clk 0:00:05.8]} 43... Be4 {[%clk 0:01:21.4]} 44.
Rh3+ {[%clk 0:00:06.1]} 44... Kg6 {[%clk 0:01:22.2]} 45. Rg3+ {[%clk 0:00:08]}
45... Kf7 {[%clk 0:01:22.8]} 46. Rg4 {[%clk 0:00:06.9]} 46... b1=Q {[%clk
0:01:23.2]} 47. Rf4+ {[%clk 0:00:08.8]} 47... Ke7 {[%clk 0:01:24.3]} 0-1

[Event "*** Titled Tuesday Blitz"]
[Site "Chess.com"]
[Date "2019.12.03"]
[Round "1"]
[White "LiamVrolijk"]
[Black "PlotnikovPavel"]
[Result "1-0"]
[WhiteElo "2755"]
[BlackElo "2384"]
[TimeControl "180+2"]
[EndTime "13:08:19 PST"]
[Termination "LiamVrolijk won on time"]

1. d4 {[%clk 0:03:01.9]} 1... e6 {[%clk 0:02:59.9]} 2. Nf3 {[%clk 0:03:02]} 2...
f5 {[%clk 0:02:58.3]} 3. g3 {[%clk 0:03:02.9]} 3... Nf6 {[%clk 0:02:58.4]} 4.
Bg2 {[%clk 0:03:04.5]} 4... d5 {[%clk 0:02:56]} 5. c4 {[%clk 0:03:04.7]} 5... c6
{[%clk 0:02:55.7]} 6. Bf4 {[%clk 0:03:06.1]} 6... Bd6 {[%clk 0:02:54.5]} 7. Bxd6
{[%clk 0:03:06.3]} 7... Qxd6 {[%clk 0:02:55.8]} 8. O-O {[%clk 0:03:06.3]} 8...
O-O {[%clk 0:02:56.2]} 9. Nbd2 {[%clk 0:03:06]} 9... Nbd7 {[%clk 0:02:56.2]} 10.
Ne1 {[%clk 0:03:04.4]} 10... Ne4 {[%clk 0:02:45]} 11. Rc1 {[%clk 0:02:51.5]}
11... Ndf6 {[%clk 0:02:41]} 12. Nd3 {[%clk 0:02:50.6]} 12... Bd7 {[%clk
0:02:38.2]} 13. Nf3 {[%clk 0:02:51.3]} 13... Be8 {[%clk 0:02:37.7]} 14. Qb3
{[%clk 0:02:50.1]} 14... Qe7 {[%clk 0:02:36.2]} 15. cxd5 {[%clk 0:02:46]} 15...
exd5 {[%clk 0:02:36.3]} 16. Qc2 {[%clk 0:02:41.5]} 16... Bh5 {[%clk 0:02:33.1]}
17. Nfe5 {[%clk 0:02:43]} 17... Rae8 {[%clk 0:02:29.6]} 18. e3 {[%clk
0:02:36.1]} 18... g5 {[%clk 0:02:25]} 19. b4 {[%clk 0:02:34.5]} 19... Nd6 {[%clk
0:02:23.9]} 20. a4 {[%clk 0:02:35.3]} 20... a6 {[%clk 0:02:25]} 21. Nc5 {[%clk
0:02:27.1]} 21... Qg7 {[%clk 0:02:10.2]} 22. b5 {[%clk 0:02:07.7]} 22... axb5
{[%clk 0:02:09.1]} 23. axb5 {[%clk 0:02:08.9]} 23... Nxb5 {[%clk 0:02:09.8]} 24.
Qxf5 {[%clk 0:02:05.1]} 24... Ng4 {[%clk 0:01:23.4]} 25. Qd3 {[%clk 0:01:22.2]}
25... Nxe5 {[%clk 0:01:19.6]} 26. dxe5 {[%clk 0:01:24.1]} 26... Rxe5 {[%clk
0:01:16.6]} 27. Qb3 {[%clk 0:01:25.2]} 27... Be2 {[%clk 0:01:08.4]} 28. Rfe1
{[%clk 0:01:23.5]} 28... Bc4 {[%clk 0:01:09.1]} 29. Qc2 {[%clk 0:01:14.1]} 29...
Qe7 {[%clk 0:00:49]} 30. Nd3 {[%clk 0:01:07.3]} 30... Ref5 {[%clk 0:00:43.8]}
31. e4 {[%clk 0:01:02.9]} 31... Bxd3 {[%clk 0:00:34.2]} 32. Qxd3 {[%clk
0:01:04.8]} 32... Rxf2 {[%clk 0:00:22.5]} 33. exd5 {[%clk 0:01:06]} 33... Qf6
{[%clk 0:00:10.8]} 34. dxc6 {[%clk 0:01:07.3]} 34... Nd4 {[%clk 0:00:07]} 35.
cxb7 {[%clk 0:00:59.3]} 35... Rxg2+ {[%clk 0:00:05.3]} 36. Kxg2 {[%clk
0:01:00.2]} 36... Qf2+ {[%clk 0:00:05.5]} 37. Kh1 {[%clk 0:01:01.8]} 37... Nf3
{[%clk 0:00:06.2]} 38. Re2 {[%clk 0:00:55.2]} 1-0

[Event "*** Titled Tuesday Blitz"]
[Site "Chess.com"]
[Date "2019.12.03"]
[Round "1"]
[White "Bulldog167"]
[Black "kesarev"]
[Result "1-0"]
[WhiteElo "2901"]
[BlackElo "2476"]
[TimeControl "180+2"]
[EndTime "13:08:23 PST"]
[Termination "Bulldog167 won by resignation"]

1. d4 {[%clk 0:03:01.9]} 1... g6 {[%clk 0:03:00.6]} 2. c4 {[%clk 0:03:02.7]}
2... Bg7 {[%clk 0:03:02]} 3. e4 {[%clk 0:03:03.5]} 3... d6 {[%clk 0:03:00.2]} 4.
Nc3 {[%clk 0:03:04.4]} 4... Nf6 {[%clk 0:03:00.9]} 5. h3 {[%clk 0:03:05]} 5...
O-O {[%clk 0:03:01.8]} 6. Be3 {[%clk 0:03:06.5]} 6... e5 {[%clk 0:02:59.4]} 7.
d5 {[%clk 0:03:07.3]} 7... a5 {[%clk 0:02:55]} 8. g4 {[%clk 0:03:07.9]} 8... Na6
{[%clk 0:02:55.1]} 9. Nge2 {[%clk 0:03:09]} 9... Nc5 {[%clk 0:02:55]} 10. Ng3
{[%clk 0:03:09.9]} 10... c6 {[%clk 0:02:46.5]} 11. Qd2 {[%clk 0:03:10.1]} 11...
a4 {[%clk 0:02:44.7]} 12. f3 {[%clk 0:03:06.5]} 12... Qa5 {[%clk 0:02:40.2]} 13.
h4 {[%clk 0:03:02.6]} 13... Bd7 {[%clk 0:02:20.1]} 14. h5 {[%clk 0:02:59.5]}
14... Rfb8 {[%clk 0:02:17.6]} 15. g5 {[%clk 0:02:32.3]} 15... Nxh5 {[%clk
0:02:17.5]} 16. Nxh5 {[%clk 0:02:32.6]} 16... gxh5 {[%clk 0:02:18.9]} 17. Rxh5
{[%clk 0:02:30.8]} 17... cxd5 {[%clk 0:02:19.5]} 18. Nxd5 {[%clk 0:02:28.5]}
18... Qxd2+ {[%clk 0:02:19.3]} 19. Kxd2 {[%clk 0:02:29.6]} 19... Be6 {[%clk
0:02:15]} 20. Be2 {[%clk 0:02:04.1]} 20... Bxd5 {[%clk 0:02:04.9]} 21. cxd5
{[%clk 0:01:38.2]} 21... b5 {[%clk 0:02:05.6]} 22. Rah1 {[%clk 0:01:38.5]} 22...
a3 {[%clk 0:02:04]} 23. b3 {[%clk 0:01:31.6]} 23... Rc8 {[%clk 0:01:58.8]} 24.
Bxb5 {[%clk 0:01:23.8]} 24... Rab8 {[%clk 0:01:58.7]} 25. Bc4 {[%clk 0:01:20.9]}
25... Na4 {[%clk 0:01:57.5]} 26. Rxh7 {[%clk 0:01:17.1]} 26... Nb2 {[%clk
0:01:58.4]} 27. Be2 {[%clk 0:01:17.1]} 27... Rc7 {[%clk 0:01:50.5]} 28. Bd3
{[%clk 0:00:41]} 28... Rbc8 {[%clk 0:00:40.7]} 29. Bb1 {[%clk 0:00:37.7]} 29...
Rc3 {[%clk 0:00:41.1]} 30. R7h2 {[%clk 0:00:34.9]} 30... f6 {[%clk 0:00:36.1]}
31. Rg2 {[%clk 0:00:34.1]} 31... fxg5 {[%clk 0:00:20.4]} 32. Rxg5 {[%clk
0:00:36]} 32... Kf7 {[%clk 0:00:21.1]} 33. Rgg1 {[%clk 0:00:29.4]} 33... R3c7
{[%clk 0:00:16.6]} 34. Rc1 {[%clk 0:00:29.3]} 34... Rxc1 {[%clk 0:00:15.9]} 35.
Rxc1 {[%clk 0:00:31.2]} 35... Rxc1 {[%clk 0:00:17.3]} 36. Kxc1 {[%clk
0:00:32.1]} 36... Bf6 {[%clk 0:00:18.3]} 37. Kc2 {[%clk 0:00:29.8]} 37... Kg6
{[%clk 0:00:17.2]} 38. Bd2 {[%clk 0:00:27.2]} 38... Kh5 {[%clk 0:00:14.6]} 39.
Bb4 {[%clk 0:00:28.5]} 39... Kh4 {[%clk 0:00:15.6]} 40. Bxa3 {[%clk 0:00:29.6]}
40... Kg3 {[%clk 0:00:16.9]} 41. Kxb2 {[%clk 0:00:30.3]} 41... Kxf3 {[%clk
0:00:18.8]} 42. Bxd6 {[%clk 0:00:31.7]} 42... Ke3 {[%clk 0:00:17.8]} 43. Kc3
{[%clk 0:00:32.4]} 1-0